Cogmind - Beta 13 @@@ ROGUE MODE // 2024.04.28 @ 09:44:08 Player: A Foxgirl OWO Result: Destroyed by as-38926 with Assembled Blade Performance ------------- Evolutions (0) 0 Regions Visited (2) 400 Robots Destroyed (18) 90 Value Destroyed (474) 474 Prototype IDs (2) 40 Alien Tech Used (0) 0 Bonus (0) 0 TOTAL SCORE: 1004 Bonus ------- None Cogmind --------- Core Integrity 0/250 Matter 295/300 Energy 124/125 System Corruption 1% Temperature Cool (0) Movement Walking (120) Location -10/Mines Parts ------- > --- POWER (1) -------- Light Ion Engine > --- PROPULSION (2) --- Aluminum Leg Aluminum Leg > --- UTILITY (2) ------ Medium Storage Unit Targeting Computer > --- WEAPON (2) ------- Light Assault Rifle > --- INVENTORY (10) --- Light Ion Engine Light Treads Medium Storage Unit Large Storage Unit Large Storage Unit Structural Scanner Structural Scanner Grenade Launcher Rocket Launcher Rocket Launcher Peak State ------------ > --- POWER ------------ Light Nuclear Core > --- PROPULSION ------- Aluminum Leg Aluminum Leg > --- UTILITY ---------- Medium Storage Unit Targeting Computer > --- WEAPON ----------- Small Laser Rocket Launcher > --- INVENTORY -------- Light Ion Engine Light Treads Medium Storage Unit Large Storage Unit Large Storage Unit Medium Matter Pod Structural Scanner Grenade Launcher Rocket Launcher [Rating: 11] Favorites ----------- Power Ion Engine Engine Ion Engine Power Core Light Nuclear Core Propulsion Light Treads Treads Light Treads Leg Aluminum Leg Utility Large Storage Unit Storage Large Storage Unit Processor Targeting Computer Weapon Light Assault Rifle Energy Gun Small Laser Ballistic Gun Light Assault Rifle Launcher Rocket Launcher Build | -11 -10 -10 ------- Run | Yrd Mat Min Slots Evolved . | . . . Power . | . . . Propulsion . | . . . Utility . | . . . Weapon . | . . . Parts Attached 25 | 6 10 9 Power 5 | 1 2 2 Engine 4 | 1 2 1 Core 1 | . . 1 Reactor . | . . . Propulsion 6 | 2 2 2 Treads 4 | 2 2 . Leg 2 | . . 2 Wheel . | . . . Hover . | . . . Flight . | . . . Utility 6 | 1 3 2 Device . | . . . Storage 5 | 1 3 1 Processor 1 | . . 1 Hackware . | . . . Protection . | . . . Artifact . | . . . Weapon 8 | 2 3 3 Energy Gun 1 | . . 1 Energy Cannon . | . . . Ballistic Gun 5 | 2 2 1 Ballistic Cannon . | . . . Launcher 2 | . 1 1 Special Weapon . | . . . Impact Weapon . | . . . Slashing Weapon . | . . . Piercing Weapon . | . . . Special Melee Weapon . | . . . Unidentified Prototypes . | . . . Parts Lost 3 | . 1 2 Power . | . . . Propulsion 1 | . . 1 Utility . | . . . Weapon 2 | . 1 1 Highest Loss Streak 1 | . 1 1 To Critical Strikes . | . . . Average Slot Usage (%) 98 | . 97 99 Engine 11 | . 14 8 Core 2 | . . 5 Treads 19 | . 27 6 Leg 8 | . . 20 Storage 22 | . 26 17 Processor 4 | . . 10 Energy Gun 4 | . . 10 Ballistic Gun 23 | . 27 15 Naked Turns . | . . . Heaviest Build 30 | 14 30 30 Greatest Support 40 | 40 40 40 Greatest Overweight (x) 1 | . . 1 Average Overweight (x) . | . . . Largest Inventory Capacity 15 | 8 15 15 Average Capacity 13 | 7 14 11 Most Carried 15 | 6 15 15 Average Carried 11 | 4 12 11 Final Capacity 15 | 8 15 10 Final Carried 15 | 6 15 10 Class Distribution -------------------- 100% | Mutant Dominant Class ---------------- Mutant | -10/Materials Mutant | -10/Mines Resources | -11 -10 -10 ----------- Run | Yrd Mat Min Matter Collected 839 | 266 414 159 Remotely . | . . . Salvage Created 509 | 17 394 98 Parts 26 | 2 14 10 Haulers Intercepted . | . . . Recyclers Shooed 1 | . . 1 Parts Field Recycled . | . . . Retrieved Matter . | . . . Parts Self-Destructed . | . . . Prevented . | . . . Kills | -11 -10 -10 ------- Run | Yrd Mat Min Combat Hostiles Destroyed 18 | . 12 6 Guns 13 | . 10 3 AOE 5 | . 2 3 Classes Destroyed 4 | 1 2 1 Worker 1 | 1 . . Swarmer 6 | . 3 3 Grunt 11 | . 9 2 Assembled 1 | . . 1 Best Kill Streak 5 | 1 5 3 Combat Bots Only 5 | . 5 3 Max Kills in Single Turn 3 | 1 2 3 Gunslinging . | . . . Exploded 3 | . 2 3 Melee . | . . . Uniques/NPCs Destroyed . | . . . Combat | -11 -10 -10 -------- Run | Yrd Mat Min Hostile Shots Fired 140 | . 92 48 Missed 40 | . 30 10 Damage Taken 1337 | . 784 553 Core 280 | . 137 143 Absorbed by Shields . | . . . Regen/Repaired (Parts) 118 | . 118 . Core Remaining (%) 100 | 100 . . Volleys Fired 81 | 1 51 29 Largest 2 | 2 2 2 Hottest 73 | 40 50 73 Shots Fired 141 | 2 96 43 Gun 138 | 2 95 41 Cannon . | . . . Launcher 3 | . 1 2 Special . | . . . Kinetic 124 | 2 95 27 Thermal 14 | . . 14 Explosive 3 | . 1 2 Electromagnetic . | . . . Robot Hit Streak 11 | 1 11 8 Robot Miss Streak 4 | 1 3 4 Penetration Max . | . . . Secondary Targets 2 | . 2 . Max Gunslinging Chain 1 | . 1 . Shots Hit Robots 95 | 1 68 26 Core Hits 36 | 1 24 11 Critical Kills . | . . . Critical Parts Destroyed . | . . . Critical Strikes . | . . . Melee Attacks . | . . . Impact . | . . . Slashing . | . . . Piercing . | . . . Sneak Attacks . | . . . Combat Hostiles . | . . . Follow-up Attacks . | . . . Damage Inflicted 1278 | 11 795 472 Guns 1016 | 11 735 270 Cannons . | . . . Explosions 261 | . 59 202 Melee . | . . . Ramming 1 | . 1 . Kinetic 913 | 11 735 167 Thermal 103 | . . 103 Explosive 261 | . 59 202 Electromagnetic . | . . . Impact . | . . . Slashing . | . . . Piercing . | . . . Highest Corruption 1 | . 1 1 Average Corruption 1 | . 1 1 Corruption Purged . | . . . Corruption Blocked . | . . . Effects 14 | . 10 4 Message Errors 4 | . 4 . Matter Fused 4 | . 3 1 Heat Flow Errors 3 | . 1 2 Parts Fused 1 | . 1 . Data Loss (minor) 1 | . 1 . Alerts 1 | . . 1 Overload Shots . | . . . Overflow Damage 82 | . . 82 Projectiles . | . . . Explosions 82 | . . 82 Melee . | . . . Knockbacks . | . . . Impact . | . . . Kinetic . | . . . Secondary . | . . . Self-Inflicted Damage 25 | . . 25 Shots 1 | . . 1 Rammed 1 | . 1 . Targets Rammed 1 | . 1 . Kicked . | . . . Crushed . | . . . Highest Temperature 220 | . 130 220 Average Temperature 36 | . 13 55 Received Heat Transfer 609 | . 393 216 Siege Activations . | . . . Robots Corrupted . | . . . Combat Hostiles . | . . . Parts Fried . | . . . Impact Corruptions . | . . . Robots Melted . | . . . Combat Hostiles . | . . . Parts Melted . | . . . Heat Transferred 225 | . . 225 Parts Sabotaged . | . . . Parts Stolen . | . . . Parts Stripped . | . . . Power Chain Reactions . | . . . Alert | -11 -10 -10 ------- Run | Yrd Mat Min Peak Influence 148 | 5 148 128 Initial 5 | . 3 5 Average 39 | . 60 15 Maximum Alert Level . | . . . Low Security (%) 100 | 100 100 100 Level 1 . | . . . Level 2 . | . . . Level 3 . | . . . Level 4 . | . . . Level 5 . | . . . High Security . | . . . Max Security . | . . . Squads Dispatched 4 | . 4 . Investigation 3 | . 3 . Extermination . | . . . Reinforcement 1 | . 1 . Assault . | . . . Garrison . | . . . Intercept . | . . . Searches Triggered . | . . . Construction Impeded . | . . . Haulers Reinforced . | . . . Active Scanning Responses . | . . . Cargo Convoy Interrupts . | . . . Stealth | -11 -10 -10 --------- Run | Yrd Mat Min Distress Signals 1 | . 1 . Communications Jammed . | . . . Distress Signals . | . . . Times Spotted 51 | . 23 28 Peak Tracking Total 15 | . 5 15 Tactical Retreats 3 | . . 3 Traps | -11 -10 -10 ------- Run | Yrd Mat Min Traps Triggered 2 | . 2 . Indirectly . | . . . Trap Hack Attempts . | . . . Triggered . | . . . Disarmed . | . . . Reprogrammed . | . . . Reused . | . . . Traps Extracted . | . . . Installed . | . . . Triggered . | . . . Machines | -11 -10 -10 ---------- Run | Yrd Mat Min Machines Disabled . | . . . Max in Single Turn . | . . . Machines Repaired . | . . . Machines Dismantled . | . . . Machines Sabotaged . | . . . Overloaded Fab Kills . | . . . Hacking | -11 -10 -10 --------- Run | Yrd Mat Min Machines Accessed 7 | . 7 . Terminals 6 | . 6 . Fabricators . | . . . Repair Stations 1 | . 1 . Recycling Units . | . . . Scanalyzers . | . . . Garrison Access . | . . . Total Hacks 15 | . 15 . Successful 6 | . 6 . Failed 9 | . 9 . Catastrophic . | . . . Database Lockouts . | . . . Manual 8 | . 8 . Terminals 12 | . 12 . Fabricators . | . . . Repair Stations 3 | . 3 . Recycling Units . | . . . Scanalyzers . | . . . Garrison Access . | . . . Terminal Hacks 4 | . 4 . Robot Analysis 1 | . 1 . Prototype ID Bank 1 | . 1 . Registered Prototypes 1 | . 1 . Zone Layout 1 | . 1 . Fabricator Hacks . | . . . Repair Station Hacks 2 | . 2 . Scan Component 1 | . 1 . Repair 1 | . 1 . Recycling Unit Hacks . | . . . Scanalyzer . | . . . Garrison Access Hacks . | . . . Unauthorized Hacks . | . . . Terminals . | . . . Fabricators . | . . . Repair Stations . | . . . Recycling Units . | . . . Scanalyzers . | . . . Garrison Access . | . . . Data Cores Recovered . | . . . Used . | . . . Hacking Detections 5 | . 5 . Full Trace Events 2 | . 2 . Feedback Events . | . . . Feedback Blocked . | . . . Robot Schematics Acquired . | . . . Robots Built . | . . . Authchips . | . . . Time . | . . . Total Robot Build Rating . | . . . Part Schematics Acquired . | . . . Parts Built . | . . . Authchips . | . . . Time . | . . . Total Part Build Rating . | . . . Parts Repaired 1 | . 1 . Time 26 | . 26 . Parts Recycled . | . . . Recycled Matter . | . . . Retrieved Matter . | . . . Retrieved Components . | . . . Parts Scanalyzed . | . . . Part Schematics Acquired . | . . . Parts Damaged . | . . . Bothacking | -11 -10 -10 ------------ Run | Yrd Mat Min Used RIF Installer . | . . . Robots Hacked . | . . . Non-combat . | . . . Combat . | . . . Robot Hacks Applied . | . . . Relay Couplers Released . | . . . Fabnet Peak Effective % . | . . . Robots Rewired . | . . . Allies Hacked . | . . . Hacks Repelled . | . . . Allies | -11 -10 -10 -------- Run | Yrd Mat Min Total Allies . | . . . Largest Group . | . . . Highest-Rated Group . | . . . Highest-Rated Ally . | . . . Total Orders . | . . . Ally Attacks . | . . . Total Damage . | . . . Kills . | . . . Allies Corrupted . | . . . Allies Melted . | . . . Intel | -11 -10 -10 ------- Run | Yrd Mat Min Robot Analysis Total 1 | . 1 . Derelict Logs Recovered 2 | . . 2 Drone Launches . | . . . Drone Recoveries . | . . . Exploration | -11 -10 -10 ------------- Run | Yrd Mat Min Turns Passed 2628 | 143 1471 1014 Spaces Moved 1394 | 83 640 671 Core 6 | 6 . . Treads 841 | 77 640 124 Legs 547 | . . 547 Wheels . | . . . Hover . | . . . Flight . | . . . Fastest Speed 50 | 50 160 120 Average Speed 144 | 152 160 127 Slowest Speed 240 | 160 160 240 Overloaded Moves . | . . . Propulsion Burnouts . | . . . Robots Hopped . | . . . Cave-ins Triggered . | . . . Exploration Rate (%) 65 | 5 93 98 Regions Visited 2 Branch Regions 1 Pre-discovered Areas . | . . . Known Exits Taken . | . . . Unknown Exits Taken 2 | 1 1 . Scrap Searched 1 | . . 1 Spaces Dug . | . . . Terrain Destroyed 33 | . 11 22 Melee . | . . . Projectile . | . . . AOE 33 | . 11 22 Terrain Rammed . | . . . Walls Destroyed . | . . . Machines Disabled . | . . . Actions | -11 -10 -10 --------- Run | Yrd Mat Min Total 1880 | 95 996 789 Wait 350 | . 278 72 Move 1392 | 82 639 671 Hop . | . . . Pick Up 19 | 6 10 3 Fast Attach 10 | 6 3 1 Attach 4 | . 1 3 Detach 1 | . 1 . Swap 11 | . 6 5 Drop 11 | . 6 5 Fire 81 | 1 51 29 Melee . | . . . Ram . | . . . Kick . | . . . Crush 1 | . 1 . Escape Stasis . | . . . Rewire . | . . . Trap . | . . . Miscellaneous . | . . . Route ------- -11/Scrapyard -10/Materials (discovered 4 exits: [*Mat x3] / [*Min]) -10/Mines (discovered 2 exits: [*Mat x2]) History --------- Turn | Location | Event 33 | -11/Scrapyard | Discovered new exit (range 15) 144 | -11/Scrapyard | Entered Materials 333 | -10/Materials | Build established: Mutant 419 | -10/Materials | Repaired Lgt. Treads 457 | -10/Materials | Discovered new exit (range 16) 555 | -10/Materials | Discovered new exit (range 8) 1123 | -10/Materials | Discovered new exit (range 16) 1254 | -10/Materials | Discovered new exit (range 11) 1256 | -10/Materials | Core integrity fell below 50% 1615 | -10/Materials | Entered Mines 1771 | -10/Mines | Received a Rocket Launcher from a helpful Derelict 1852 | -10/Mines | Core integrity fell below 20% 1901 | -10/Mines | Discovered new exit (range 12) 2038 | -10/Mines | Learned 8 Materials zone layouts 2061 | -10/Mines | Assembled infested the area 2066 | -10/Mines | Assisted by a Guerilla fighting off Assembled 2333 | -10/Mines | Discovered new exit (range 6) 2629 | -10/Mines | Destroyed by as-38926 with Assembled Blade Last Messages --------------- K-01 Serf collects debris. U-05 Engineer builds a Wall. A derelict is hurriedly installing traps. K-01 Serf collects debris. U-05 Engineer lays Concrete. U-05 Engineer builds a Wall. K-01 Serf collects debris. U-05 Engineer lays Concrete. K-01 Serf collects debris. EXIT=FOUND System corrupted: Heat flow error (+238). U-05 Engineer builds a Wall. T-07 Excavator destroyed. U-05 Engineer lays Concrete. K-01 Serf collects debris. U-05 Engineer builds a Wall. K-01 Serf collects debris. System corrupted: IFF burst signal emitted. K-01 Serf collects debris. Sml. Laser severed. Map ----- +----------------------------------------------------+ | ???????## ##?????## #######=# | | ???????# ##????# ########%# | | ??????## #????# ##?# !!# | | ??????# #????# ##??# * # | | ??????# ##???# ##???# ###### | | ??????# =%= ##### #????# #????? | | ??????# !! ## ##????# ##???? | | ?????## = % ##????## ##??? | | ????## ##?????# ##?? | | ???## #### < #?????## #?? | | ???# ##??# ### ##????## #?? | | ??# ##### #?####????## #?? | | ??# ###% !%== #?????????# ###?? | | ??## #??# #######?????????# ##???? | | ???###???# !#?#####????????## ##???? | | ?????????#*=### ##??????## ##??? | | ?????#####*%## ##????## ##?? | | ????## =%=* ###### ! ] ##? | | ????# = = #? | | ????## * =%| ## #? | | ?????##### ###### ###### ##? | | ????????## ######????## #????# ##?? | | ????????# =/##????????### #????# #### | | ????????# !=%##????????# #????# ! | | ????????# !==########## #????#### # | | ????????## =% @a ###???????# # | | ?????????### *###########++#######???# # | | ?????####### #????????# #???# # | | ?????# #????????# ##### #???# # | | ?????# ##### #???????? #???# ##??# # | | ?????# #???# #???????? #???## ##?# # | | ????## ##### #??????? #????# #?# # | | ???## ## ####???? ????## ### # | | ???# """ ##?????#???## ## # | | ???# """ #????????## ## # | | ???# """ #????????# ## # | | ???# ##????????# # # | | ???# #####?????????# # | | ???# ## ##?????????????# #### | | ???###### #?????????????# ###??? | | ????????# ##????????????# ##????? | | ????????# ##????????????# ##?????? | | ????????###?????????????# ###??????? | | ????????????????????????# #?????????? | | ????????????????????????## #??????????? | | ?????????????????????????###???????????? | | ???????????????????????????????????????? | | ???????????????????????????????????????? | | ???????????????????????????????????????? | | | +----------------------------------------------------+ Best States ------------- Heat Dissipation 25 Energy Generation 14 Energy Capacity 250 Matter Stores 400 Matter Capacity 400 Sight Range 16 Terrain Scan Density 10 Evasion (%) 55 Targeting Accuracy 5 Recoil Reduction 2 Item Schematics ----------------- None Robot Schematics ------------------ None Fabricated ------------ Nothing Alien Tech Used ----------------- None Achievements -------------- None Challenges ------------ None Game ------ Seed DeepIntegratedKatana Manual? 0 Play Time 00:20:24 Cumulative 8.3 hours Start 2024.04.28 @ 09:22:31 End 2024.04.28 @ 09:44:08 Sessions 1 Manual Loads 0 Difficulty Rogue Special Mode None Game No. 19 Rogue 19 Adventurer 0 Explorer 0 Win Type - Total 0 Types 0/0/0/0/0/0/0/0/0 Lore% 9 Gallery% 10 Achievement% 10 Wizard Run 0 Options --------- Layout 1 ASCII 0 Keyboard 0 Movement Mouse Keybinds 0 Fullscreen 0 Font 42/SmallcapsGlow Map View 50x35 Zoom Use 0% Tactical HUD 0 Map Filters NONE Filters NONE Steam 1 RUN: ecf1138b-965a-4573-95e7-d8429fc8306f